[Event "44th Chess Olympiad Women 2022"]
[Site "Chennai"]
[Date "2022.08.02"]
[Round "5.43"]
[White "Gjergji, Rozana"]
[Black "De la Riva Real, Jana"]
[Result "1-0"]
[ECO "C02"]
[WhiteElo "1920"]
[BlackElo "1167"]
[Annotator "TA"]
[PlyCount "85"]
[EventDate "2022.07.29"]
[EventType "team-tourn"]
[EventCountry "IND"]
[SourceTitle "playchess.com"]
[Source "ChessBase"]
[SourceQuality "1"]
[WhiteTeam "Albania"]
[BlackTeam "Andorra"]
[WhiteTeamCountry "ALB"]
[BlackTeamCountry "AND"]
[TimeControl "40/5400+30:1800+30"]

{[%evp 12,85,0,0,-9,-6,46,13,75,23,47,-14,0,-18,35,29,35,15,40,42,56,62,93,48,41,45,43,16,39,28,41,25,58,61,58,54,72,76,83,36,120,121,137,155,205,43,40,12,19,14,9,-8,-12,-16,31,32,206,204,233,232,346,266,381,362,401,399,352,202,458,448,468,457,5485,4916,29992,29993]} 1. e4 {[%emt 0:00:30]} e6 {[%emt 0:00:10]} 2. d4 {[%emt 0:00:00]} d5 {[%emt 0:00:06]} 3. e5 {[%emt 0:00:34]} c5 {[%emt 0:00:24]} 4. c3 {[%emt 0:00:05]} Nc6 {[%emt 0:00:22]} 5. Nf3 {[%emt 0:00:37]} Qb6 {[%emt 0:01:28]} 6. Be2 {[%emt 0:01:44]} Nge7 {[%emt 0:04:35]} 7. Na3 {[%emt 0:02:30] aiming for dxc5.} Nf5 {[%emt 0:05:13][%cal Rc5d4] C02: French: Advance Variation.} 8. Nc2 {[%emt 0:00:44]} Be7 {[%emt 0:01:25]} (8... cxd4 $11 9. cxd4 (9. Nfxd4 Bc5 $15) 9... Be7) 9. O-O {[%emt 0:00:40]} O-O {[%emt 0:00:58]} (9... cxd4 $11 {remains equal.} 10. Ncxd4 (10. Nfxd4 Nfxd4 11. cxd4 O-O $11) 10... Nfxd4 11. cxd4 Bd7) 10. Rb1 {[%emt 0:07:18]} (10. dxc5 $16 Qxc5 11. Bd3) 10... Bd7 {[%emt 0:06:05] [#]} 11. Ne3 $146 {[%emt 0:02:43]} (11. dxc5 $14 Qxc5 12. Bd3) ({Predecessor:} 11. h3 Rac8 12. g4 Nh4 13. Nxh4 Bxh4 14. Bf4 f6 15. exf6 Bxf6 16. Bd6 Nxd4 17. Bxf8 Nxe2+ 18. Qxe2 Rxf8 {1-0 (32) Kuttner,J (917)-Hickl,N (993) LSS email 2017}) 11... Nxe3 $11 {[%emt 0:03:30]} 12. fxe3 {[%emt 0:02:08]} cxd4 {[%emt 0:02:08]} (12... f5 $11) 13. exd4 $14 {[%emt 0:00:14]} f6 {[%emt 0:02:07]} 14. exf6 {[%emt 0:02:52]} Bxf6 {[%emt 0:01:31]} 15. Kh1 {[%emt 0:00:51]} Rae8 {[%emt 0:04:50]} 16. Bf4 {[%emt 0:08:37]} Ne7 {[%emt 0:17:03]} 17. Bd3 {[%emt 0:10:56]} Bb5 {[%emt 0:06:22]} 18. Bxb5 {[%emt 0:10:19]} Qxb5 {[%emt 0:00:20]} 19. Re1 {[%emt 0:00:20]} Ng6 {[%emt 0:00:44]} 20. Bg3 {[%emt 0:00:49]} Qd7 {[%emt 0:03:27]} 21. Qd3 {[%emt 0:03:13]} Re7 {[%emt 0:10:39]} 22. Re2 {[%emt 0:10:42]} Rfe8 {[%emt 0:01:32]} 23. Rbe1 {[%emt 0:00:57]} a6 {[%emt 0:04:02]} 24. h4 {[%emt 0:03:28]} Nh8 {[%emt 0:06:46]} 25. Bh2 {[%emt 0:02:30] White is more active.} (25. Nh2 $16) 25... Nf7 {[%emt 0:02:54] [#]} (25... Ng6 $14) 26. g4 $1 $16 {[%emt 0:01:36][%cal Bg2g4,Bg4g5][%mdl 32] Threatens to win with g5.} g6 {[%emt 0:01:45]} 27. g5 {[%emt 0:01:35]} Bh8 {[%emt 0:02:20] [#]} (27... Bg7 $16) 28. Bf4 $2 {[%emt 0:06:39]} (28. h5 $1 $18 {[%cal Rh5g6]}) 28... Nd6 $14 {[%emt 0:02:32]} 29. Nh2 {[%emt 0:00:41][%cal Bf3h2,Bh2g4,Bg4f6][%mdl 32]} Ne4 {[%emt 0:01:06]} 30. Ng4 $36 {[%emt 0:00:26][%mdl 2048] White has some pressure.} Bg7 {[%emt 0:00:38]} 31. Rh2 {[%emt 0:01:47]} Rf7 {[%emt 0:02:24]} 32. Be5 {[%emt 0:03:54] Strongly threatening Bxg7.} Qe7 {[%emt 0:01:46]} (32... Rf5 $11) 33. Bf6 {[%emt 0:00:46]} Nxf6 {[%emt 0:01:43] This move loses the game for Black.} (33... Qc7 $14) 34. gxf6 $18 {[%emt 0:00:13]} Rxf6 {[%emt 0:01:11]} 35. Nxf6+ {[%emt 0:00:12]} Bxf6 {[%emt 0:00:04]} (35... Qxf6 $142 36. Rf1 Qe7) 36. Qh3 {[%emt 0:01:30]} Qg7 {[%emt 0:01:54]} (36... h5 $142 37. Rhe2 Qf7 38. Rxe6 Re7 39. Rxe7 Bxe7) 37. Rxe6 {[%emt 0:00:22]} Rxe6 {[%emt 0:00:45]} 38. Qxe6+ {[%emt 0:00:02] KQR-KQB} Qf7 {[%emt 0:00:06]} 39. Qg4 {[%emt 0:00:56]} (39. Qxf7+ $142 Kxf7 40. h5) 39... Qe7 $2 {[%emt 0:01:55]} (39... h5 {was necessary.} 40. Qf3 Kg7) 40. Re2 {[%emt 0:00:30]} Qf7 {[%emt 0:00:50]} 41. h5 {[%emt 0:31:19][%cal Bh4h5,Bh5h6][%mdl 32]} g5 {[%emt 0:30:26]} (41... Kg7 $142 42. Kg2 Qc7) 42. h6 {[%emt 0:00:12] Qc8+ would kill now.} b5 {[%emt 0:00:00]} 43. Qc8+ {[%emt 0:00:00] Weighted Error Value: White=0.28 (precise) /Black=0.62} 1-0

[Event "44th Chess Olympiad Women 2022"]
[Site "Chennai"]
[Date "2022.08.02"]
[Round "5.43"]
[White "Shuqja, Klean"]
[Black "De la Riva Real, Ariadna"]
[Result "1-0"]
[ECO "B38"]
[WhiteElo "1883"]
[BlackElo "1649"]
[Annotator "NA RC COMBH"]
[PlyCount "83"]
[EventDate "2022.07.29"]
[EventType "team-tourn"]
[EventCountry "IND"]
[SourceTitle "playchess.com"]
[Source "ChessBase"]
[SourceQuality "1"]
[WhiteTeam "Albania"]
[BlackTeam "Andorra"]
[WhiteTeamCountry "ALB"]
[BlackTeamCountry "AND"]
[TimeControl "40/5400+30:1800+30"]

1. e4 {[%emt 0:00:02]} c5 {[%emt 0:00:06]} 2. Nf3 {[%emt 0:00:02]} g6 {[%emt 0:00:16]} 3. c4 {[%emt 0:00:08]} Bg7 {[%emt 0:00:35]} 4. d4 {[%emt 0:00:11]} cxd4 {[%emt 0:00:32]} 5. Nxd4 {[%emt 0:00:03]} Nc6 {[%emt 0:00:19]} 6. Be3 {[%emt 0:00:07]} Nf6 {[%emt 0:00:31]} 7. Nc3 {[%emt 0:00:04]} d6 {[%emt 0:01:18]} 8. Be2 {[%emt 0:00:18]} Bd7 {[%emt 0:01:50]} 9. O-O {[%emt 0:00:27]} O-O {[%emt 0:00:24]} 10. Qd2 {[%emt 0:09:07]} Nxd4 {[%emt 0:04:55]} 11. Bxd4 {[%emt 0:00:34]} Bc6 {[%emt 0:00:43]} 12. f3 {[%emt 0:00:53]} a5 {[%emt 0:05:56]} 13. b3 {[%emt 0:01:34]} Qc7 {[%emt 0:05:38]} 14. Rac1 {[%emt 0:00:43]} Rfc8 {[%emt 0:07:05]} 15. Rc2 {[%emt 0:13:46]} Nd7 {[%emt 0:14:15]} 16. Bf2 {[%emt 0:08:15]} Nc5 {[%emt 0:15:02]} 17. Rb1 {[%emt 0:03:09]} Ne6 {[%emt 0:03:53]} 18. Rbc1 {[%emt 0:04:32]} Qd8 {[%emt 0:07:38]} 19. Kh1 {[%emt 0:02:44]} Be5 {[%emt 0:04:31]} 20. Be3 {[%emt 0:03:18]} Qf8 {[%emt 0:04:15]} 21. Nd5 {[%emt 0:01:48]} Bxd5 {[%emt 0:01:25]} 22. cxd5 {[%emt 0:00:07]} Rxc2 {[%emt 0:01:51]} 23. Rxc2 {[%emt 0:00:26]} Nd8 {[%emt 0:01:05]} 24. Bb6 {[%emt 0:03:16]} f5 {[%emt 0:02:02]} 25. Bd3 {[%emt 0:11:25]} f4 {[%emt 0:04:40]} 26. Bxa5 {[%emt 0:02:15]} Nf7 {[%emt 0:01:39]} 27. Bb5 {[%emt 0:01:49]} g5 {[%emt 0:02:26]} 28. Bd7 {[%emt 0:01:07]} h5 {[%emt 0:00:00]} 29. Be6 {[%emt 0:03:36]} Kh7 {[%emt 0:01:15]} 30. b4 {[%emt 0:07:45]} Nh6 {[%emt 0:02:26]} 31. Qc1 {[%emt 0:01:06]} Qg7 {[%emt 0:00:56]} 32. Rc8 {[%emt 0:01:39]} Ra6 {[%emt 0:02:16]} 33. Qc7 {[%emt 0:04:00]} b6 {[%emt 0:00:51]} 34. Re8 {[%emt 0:00:48]} Bf6 {[%emt 0:00:27]} 35. Qb7 {[%emt 0:02:15]} bxa5 {[%emt 0:00:23]} 36. b5 {[%emt 0:00:34]} Rb6 {[%emt 0:01:45]} 37. Qxb6 {[%emt 0:00:17]} g4 {[%emt 0:00:09]} 38. Qf2 {[%emt 0:02:32]} Bd4 {[%emt 0:01:38]} 39. Qh4 {[%emt 0:00:47]} Bf6 {[%emt 0:00:35]} 40. Qxh5 {[%emt 0:00:24]} Qg5 {[%emt 0:00:59]} 41. Qxg5 {[%emt 0:30:52]} Bxg5 {[%emt 0:30:06]} 42. b6 {[%emt 0:00:11]} 1-0

[Event "44th Chess Olympiad Women 2022"]
[Site "Chennai"]
[Date "2022.08.02"]
[Round "5.44"]
[White "Manova, Ivana"]
[Black "Chuemsakul, Sarocha"]
[Result "1-0"]
[ECO "C47"]
[WhiteElo "1849"]
[BlackElo "1684"]
[Annotator "NA RC COMBH"]
[PlyCount "113"]
[EventDate "2022.07.29"]
[EventType "team-tourn"]
[EventCountry "IND"]
[SourceTitle "playchess.com"]
[Source "ChessBase"]
[SourceQuality "1"]
[WhiteTeam "Macedonia"]
[BlackTeam "Thailand"]
[WhiteTeamCountry "MKD"]
[BlackTeamCountry "THA"]
[TimeControl "40/5400+30:1800+30"]

1. e4 {[%emt 0:00:08]} e5 {[%emt 0:00:15]} 2. Nf3 {[%emt 0:00:15]} Nc6 {[%emt 0:00:07]} 3. Nc3 {[%emt 0:00:44]} Nf6 {[%emt 0:02:44]} 4. d4 {[%emt 0:00:42]} exd4 {[%emt 0:04:07]} 5. Nxd4 {[%emt 0:00:15]} Bb4 {[%emt 0:01:54]} 6. Nxc6 {[%emt 0:00:29]} bxc6 {[%emt 0:00:13]} 7. Bd3 {[%emt 0:00:08]} O-O {[%emt 0:00:48]} 8. O-O {[%emt 0:01:06]} d5 {[%emt 0:02:00]} 9. exd5 {[%emt 0:01:25]} cxd5 {[%emt 0:00:12]} 10. Bg5 {[%emt 0:00:22]} Be6 {[%emt 0:01:51]} 11. Qf3 {[%emt 0:03:16]} c5 {[%emt 0:06:56]} 12. Bxf6 {[%emt 0:54:44]} Qxf6 {[%emt 0:00:27]} 13. Nxd5 {[%emt 0:01:25]} Bxd5 {[%emt 0:34:58]} 14. Qxd5 {[%emt 0:01:44]} Qxb2 {[%emt 0:00:06]} 15. Rab1 {[%emt 0:02:16]} Qf6 {[%emt 0:00:42]} 16. Rb3 {[%emt 0:01:41]} Rfd8 {[%emt 0:02:52]} 17. Qe4 {[%emt 0:00:39]} g6 {[%emt 0:03:04]} 18. a3 {[%emt 0:00:51]} Bc3 {[%emt 0:04:15]} 19. Rb7 {[%emt 0:01:42]} Rd4 {[%emt 0:15:02]} 20. Rxf7 {[%emt 0:04:48]} Rxe4 {[%emt 0:00:14]} 21. Rxf6 {[%emt 0:00:05]} Ra4 {[%emt 0:05:21]} 22. Ra6 {[%emt 0:05:02]} Rxa6 {[%emt 0:00:00]} 23. Bxa6 {[%emt 0:00:39]} Rf8 {[%emt 0:00:25]} 24. g3 {[%emt 0:01:22]} Rb8 {[%emt 0:06:17]} 25. Rd1 {[%emt 0:01:15]} Bd4 {[%emt 0:00:19]} 26. Kg2 {[%emt 0:01:02]} Rb2 {[%emt 0:00:52]} 27. Bc4+ {[%emt 0:03:24]} Kg7 {[%emt 0:02:06]} 28. Bb3 {[%emt 0:00:48]} a5 {[%emt 0:02:11]} 29. a4 {[%emt 0:02:54]} g5 {[%emt 0:02:42]} 30. Kf3 {[%emt 0:02:41]} Kf6 {[%emt 0:00:11]} 31. Ke4 {[%emt 0:00:23]} h6 {[%emt 0:02:15]} 32. f3 {[%emt 0:06:00]} h5 {[%emt 0:00:32]} 33. Kd3 {[%emt 0:01:10]} h4 {[%emt 0:00:31]} 34. Kc4 {[%emt 0:01:02]} Kf5 {[%emt 0:00:29]} 35. Kb5 {[%emt 0:00:43]} hxg3 {[%emt 0:00:27]} 36. hxg3 {[%emt 0:00:04]} Ke5 {[%emt 0:00:33]} 37. Re1+ {[%emt 0:01:04]} Kf5 {[%emt 0:00:17]} 38. Rd1 {[%emt 0:00:30]} Ke5 {[%emt 0:00:01]} 39. Kc4 {[%emt 0:00:37]} Kf5 {[%emt 0:00:35]} 40. Kb5 {[%emt 0:00:30]} Ke5 {[%emt 0:00:08]} 41. Kxa5 {[%emt 0:07:02]} c4 {[%emt 0:05:18]} 42. Bxc4 {[%emt 0:01:30]} Rxc2 {[%emt 0:00:24]} 43. f4+ {[%emt 0:01:46]} gxf4 {[%emt 0:09:01]} 44. gxf4+ {[%emt 0:00:05]} Kd6 {[%emt 0:01:45]} 45. Rxd4+ {[%emt 0:00:19]} Kc5 {[%emt 0:00:02]} 46. Bd3 {[%emt 0:03:44]} Rb2 {[%emt 0:01:12]} 47. Rc4+ {[%emt 0:00:09]} Kd6 {[%emt 0:01:12]} 48. Rc1 {[%emt 0:00:31]} Rd2 {[%emt 0:01:24]} 49. Bb5 {[%emt 0:00:09]} Rf2 {[%emt 0:00:12]} 50. Rc4 {[%emt 0:00:11]} Kd5 {[%emt 0:00:40]} 51. Kb6 {[%emt 0:00:22]} Rh2 {[%emt 0:00:17]} 52. Rc5+ {[%emt 0:00:49]} Kd4 {[%emt 0:00:28]} 53. a5 {[%emt 0:00:47]} Rh8 {[%emt 0:01:08]} 54. Rc7 {[%emt 0:00:19]} Rb8+ {[%emt 0:00:47]} 55. Rb7 {[%emt 0:01:14]} Rf8 {[%emt 0:00:04]} 56. a6 {[%emt 0:00:22]} Kd5 {[%emt 0:00:35]} 57. Rd7+ {[%emt 0:00:22]} 1-0

[Event "44th Chess Olympiad Women 2022"]
[Site "Chennai"]
[Date "2022.08.02"]
[Round "5.44"]
[White "Prommuang, Araya"]
[Black "Nikolovska, Dragana"]
[Result "1/2-1/2"]
[ECO "B76"]
[WhiteElo "1651"]
[BlackElo "1876"]
[Annotator "NA RC COMBH"]
[PlyCount "51"]
[EventDate "2022.07.29"]
[EventType "team-tourn"]
[EventCountry "IND"]
[SourceTitle "playchess.com"]
[Source "ChessBase"]
[SourceQuality "1"]
[WhiteTeam "Thailand"]
[BlackTeam "Macedonia"]
[WhiteTeamCountry "THA"]
[BlackTeamCountry "MKD"]
[TimeControl "40/5400+30:1800+30"]

1. e4 {[%emt 0:00:09]} c5 {[%emt 0:00:07]} 2. Nf3 {[%emt 0:00:18]} d6 {[%emt 0:00:09]} 3. d4 {[%emt 0:00:29]} cxd4 {[%emt 0:00:08]} 4. Nxd4 {[%emt 0:00:24]} Nf6 {[%emt 0:00:09]} 5. Nc3 {[%emt 0:00:27]} g6 {[%emt 0:00:14]} 6. f3 {[%emt 0:00:19]} Bg7 {[%emt 0:01:17]} 7. Be3 {[%emt 0:01:07]} Nc6 {[%emt 0:01:06]} 8. Qd2 {[%emt 0:00:51]} O-O {[%emt 0:00:16]} 9. O-O-O {[%emt 0:01:08]} d5 {[%emt 0:00:42]} 10. Nxc6 {[%emt 0:09:48]} bxc6 {[%emt 0:00:11]} 11. exd5 {[%emt 0:10:20]} cxd5 {[%emt 0:04:17]} 12. g4 {[%emt 0:02:02]} Qa5 {[%emt 0:33:44]} 13. a3 {[%emt 0:08:21]} e6 {[%emt 0:04:48]} 14. Bh6 {[%emt 0:05:49]} d4 {[%emt 0:10:11]} 15. Bxg7 {[%emt 0:09:36]} dxc3 {[%emt 0:11:29]} 16. Qh6 {[%emt 0:16:14]} cxb2+ {[%emt 0:01:17]} 17. Kxb2 {[%emt 0:03:49]} Rb8+ {[%emt 0:01:44]} 18. Ka2 {[%emt 0:02:04]} Qc3 {[%emt 0:03:04]} 19. Bb5 {[%emt 0:07:35]} Rxb5 {[%emt 0:12:15]} 20. Rb1 {[%emt 0:01:55]} Qxc2+ {[%emt 0:02:47]} 21. Ka1 {[%emt 0:00:42]} Qc3+ {[%emt 0:09:45]} 22. Ka2 {[%emt 0:00:51]} Qc2+ {[%emt 0:00:04]} 23. Ka1 {[%emt 0:00:28]} Qc3+ {[%emt 0:01:39]} 24. Ka2 {[%emt 0:00:07]} Qc2+ {[%emt 0:00:31]} 25. Ka1 {[%emt 0:00:06]} Qc3+ {[%emt 0:00:31]} 26. Ka2 {[%emt 0:00:06]} 1/2-1/2

[Event "44th Chess Olympiad Women 2022"]
[Site "Chennai"]
[Date "2022.08.02"]
[Round "5.44"]
[White "Eftovska, Lea"]
[Black "Burbach, Anya Belle"]
[Result "1-0"]
[ECO "C42"]
[WhiteElo "1634"]
[BlackElo "1375"]
[Annotator "NA RC COMBH"]
[PlyCount "73"]
[EventDate "2022.07.29"]
[EventType "team-tourn"]
[EventCountry "IND"]
[SourceTitle "playchess.com"]
[Source "ChessBase"]
[SourceQuality "1"]
[WhiteTeam "Macedonia"]
[BlackTeam "Thailand"]
[WhiteTeamCountry "MKD"]
[BlackTeamCountry "THA"]
[TimeControl "40/5400+30:1800+30"]

1. e4 {[%emt 0:00:08]} e5 {[%emt 0:00:27]} 2. Nf3 {[%emt 0:00:08]} Nf6 {[%emt 0:00:32]} 3. Nxe5 {[%emt 0:00:07]} d6 {[%emt 0:00:24]} 4. Nf3 {[%emt 0:00:11]} Nxe4 {[%emt 0:00:16]} 5. d4 {[%emt 0:00:30]} d5 {[%emt 0:00:53]} 6. Bd3 {[%emt 0:00:08]} Bd6 {[%emt 0:02:04]} 7. O-O {[%emt 0:00:15]} O-O {[%emt 0:01:47]} 8. c4 {[%emt 0:01:39]} c6 {[%emt 0:02:49]} 9. Qc2 {[%emt 0:04:57]} f5 {[%emt 0:02:35]} 10. Nc3 {[%emt 0:05:28]} Be6 {[%emt 0:10:09]} 11. cxd5 {[%emt 0:04:05]} cxd5 {[%emt 0:00:23]} 12. Nb5 {[%emt 0:06:04]} Nc6 {[%emt 0:02:46]} 13. Nxd6 {[%emt 0:05:53]} Qxd6 {[%emt 0:00:27]} 14. a3 {[%emt 0:00:51]} Rac8 {[%emt 0:03:03]} 15. Qe2 {[%emt 0:06:17]} Bf7 {[%emt 0:03:09]} 16. Qe3 {[%emt 0:12:11]} Bh5 {[%emt 0:05:40]} 17. Qf4 {[%emt 0:10:34]} Qf6 {[%emt 0:10:21]} 18. Ne5 {[%emt 0:14:55]} Be8 {[%emt 0:23:31]} 19. Nxc6 {[%emt 0:07:34]} Bxc6 {[%emt 0:00:52]} 20. Be3 {[%emt 0:01:37]} g5 {[%emt 0:04:40]} 21. Qf3 {[%emt 0:07:21]} f4 {[%emt 0:01:26]} 22. Bc1 {[%emt 0:01:13]} Qxd4 {[%emt 0:02:20]} 23. Bxe4 {[%emt 0:02:31]} Qxe4 {[%emt 0:04:11]} 24. Qh5 {[%emt 0:02:59]} Rf7 {[%emt 0:03:39]} 25. Bd2 {[%emt 0:01:22]} d4 {[%emt 0:01:54]} 26. f3 {[%emt 0:00:59]} Qd5 {[%emt 0:02:13]} 27. Rfe1 {[%emt 0:00:54]} Bd7 {[%emt 0:01:18]} 28. Rad1 {[%emt 0:01:37]} Qc5 {[%emt 0:03:21]} 29. Bb4 {[%emt 0:00:25]} Qd5 {[%emt 0:02:27]} 30. Bc3 {[%emt 0:00:24]} d3 {[%emt 0:02:16]} 31. Re5 {[%emt 0:00:18]} Qb3 {[%emt 0:01:32]} 32. Rxg5+ {[%emt 0:00:19]} Kf8 {[%emt 0:00:49]} 33. Qh6+ {[%emt 0:01:27]} Ke8 {[%emt 0:01:25]} 34. Re1+ {[%emt 0:00:32]} Kd8 {[%emt 0:01:03]} 35. Rg8+ {[%emt 0:00:26]} Be8 {[%emt 0:00:39]} 36. Qd6+ {[%emt 0:00:28]} Rd7 {[%emt 0:00:27]} 37. Rgxe8# {[%emt 0:00:10]} 1-0

[Event "44th Chess Olympiad Women 2022"]
[Site "Chennai"]
[Date "2022.08.02"]
[Round "5.44"]
[White "Buhagiar, Melita Sunan"]
[Black "Zhezhovska, Monika"]
[Result "1/2-1/2"]
[ECO "D02"]
[WhiteElo "1431"]
[BlackElo "1588"]
[Annotator "NA RC COMBH"]
[PlyCount "138"]
[EventDate "2022.07.29"]
[EventType "team-tourn"]
[EventCountry "IND"]
[SourceTitle "playchess.com"]
[Source "ChessBase"]
[SourceQuality "1"]
[WhiteTeam "Thailand"]
[BlackTeam "Macedonia"]
[WhiteTeamCountry "THA"]
[BlackTeamCountry "MKD"]
[TimeControl "40/5400+30:1800+30"]

1. d4 {[%emt 0:00:02]} d5 {[%emt 0:00:10]} 2. Bf4 {[%emt 0:01:12]} Nf6 {[%emt 0:00:18]} 3. e3 {[%emt 0:00:21]} e6 {[%emt 0:00:16]} 4. Nf3 {[%emt 0:00:15]} c5 {[%emt 0:00:27]} 5. Nbd2 {[%emt 0:00:34]} Nc6 {[%emt 0:00:28]} 6. c3 {[%emt 0:00:46]} Bd6 {[%emt 0:01:12]} 7. Bg3 {[%emt 0:00:53]} O-O {[%emt 0:02:00]} 8. Bd3 {[%emt 0:00:44]} a6 {[%emt 0:01:27]} 9. a4 {[%emt 0:04:42]} h6 {[%emt 0:01:31]} 10. Rc1 {[%emt 0:03:11]} Qc7 {[%emt 0:04:46]} 11. dxc5 {[%emt 0:02:24]} Bxg3 {[%emt 0:00:48]} 12. hxg3 {[%emt 0:00:09]} e5 {[%emt 0:00:28]} 13. Be2 {[%emt 0:25:36]} Re8 {[%emt 0:03:47]} 14. O-O {[%emt 0:01:04]} Bf5 {[%emt 0:00:46]} 15. b4 {[%emt 0:05:13]} Rad8 {[%emt 0:02:05]} 16. Nb3 {[%emt 0:06:27]} Be6 {[%emt 0:10:32]} 17. Qc2 {[%emt 0:02:51]} d4 {[%emt 0:04:48]} 18. exd4 {[%emt 0:09:36]} Bxb3 {[%emt 0:00:16]} 19. Qxb3 {[%emt 0:00:09]} exd4 {[%emt 0:00:13]} 20. Bc4 {[%emt 0:02:03]} Ne4 {[%emt 0:02:41]} 21. Rfe1 {[%emt 0:08:23]} dxc3 {[%emt 0:08:01]} 22. Red1 {[%emt 0:05:14]} a5 {[%emt 0:05:52]} 23. b5 {[%emt 0:04:50]} Nxc5 {[%emt 0:01:31]} 24. Qxc3 {[%emt 0:01:15]} Rxd1+ {[%emt 0:04:00]} 25. Rxd1 {[%emt 0:00:06]} Ne4 {[%emt 0:00:33]} 26. Qb3 {[%emt 0:02:37]} Nd8 {[%emt 0:01:56]} 27. b6 {[%emt 0:01:38]} Qc5 {[%emt 0:01:01]} 28. Nd4 {[%emt 0:02:04]} Qe5 {[%emt 0:04:31]} 29. Qb5 {[%emt 0:02:54]} Nc3 {[%emt 0:08:03]} 30. Qxe5 {[%emt 0:00:05]} Rxe5 {[%emt 0:00:06]} 31. Nf3 {[%emt 0:00:21]} Nxd1 {[%emt 0:00:44]} 32. Nxe5 {[%emt 0:00:08]} Nc3 {[%emt 0:00:17]} 33. Bb3 {[%emt 0:01:49]} Kf8 {[%emt 0:00:40]} 34. f3 {[%emt 0:02:18]} Ke7 {[%emt 0:00:48]} 35. Kf2 {[%emt 0:00:36]} f6 {[%emt 0:00:38]} 36. Ng6+ {[%emt 0:02:40]} Kd6 {[%emt 0:00:43]} 37. Ke3 {[%emt 0:01:41]} Nd5+ {[%emt 0:00:25]} 38. Bxd5 {[%emt 0:00:49]} Kxd5 {[%emt 0:00:10]} 39. Kd3 {[%emt 0:01:14]} Kc5 {[%emt 0:01:15]} 40. Kc3 {[%emt 0:00:26]} Kxb6 {[%emt 0:00:07]} 41. Kc4 {[%emt 0:30:28]} Kc7 {[%emt 0:33:16]} 42. Nf4 {[%emt 0:00:38]} Kd6 {[%emt 0:05:32]} 43. Kb5 {[%emt 0:00:57]} Nc6 {[%emt 0:00:37]} 44. Nh5 {[%emt 0:00:36]} g5 {[%emt 0:02:23]} 45. Nxf6 {[%emt 0:00:00]} Kc7 {[%emt 0:00:00]} 46. Ng4 {[%emt 0:00:00]} h5 {[%emt 0:00:00]} 47. Nf6 {[%emt 0:00:00]} h4 {[%emt 0:00:00]} 48. Ne4 {[%emt 0:00:00]} b6 {[%emt 0:00:00]} 49. Nxg5 {[%emt 0:00:00]} hxg3 {[%emt 0:00:00]} 50. Ne6+ {[%emt 0:00:00]} Kb7 {[%emt 0:00:00]} 51. f4 {[%emt 0:00:00]} Ne7 {[%emt 0:00:00]} 52. Nd4 {[%emt 0:00:00]} Kc7 {[%emt 0:00:00]} 53. f5 {[%emt 0:00:00]} Nd5 {[%emt 0:00:00]} 54. Ne2 {[%emt 0:00:00]} Ne3 {[%emt 0:00:00]} 55. Nxg3 {[%emt 0:00:00]} Nxg2 {[%emt 0:00:00]} 56. f6 {[%emt 0:00:00]} Nf4 {[%emt 0:00:00]} 57. Ne4 {[%emt 0:00:00]} Ne6 {[%emt 0:00:00]} 58. Nc3 {[%emt 0:00:00]} Nd4+ {[%emt 0:00:00]} 59. Kc4 {[%emt 0:00:00]} Ne6 {[%emt 0:00:00]} 60. Kd5 {[%emt 0:00:00]} Kd7 {[%emt 0:00:00]} 61. Ke5 {[%emt 0:00:42]} Nf8 {[%emt 0:00:00]} 62. Nd5 {[%emt 0:00:44]} Kc6 {[%emt 0:00:00]} 63. f7 {[%emt 0:02:39]} Ng6+ {[%emt 0:00:00]} 64. Kf6 {[%emt 0:01:48]} Nf8 {[%emt 0:00:00]} 65. Ne7+ {[%emt 0:01:13]} Kd6 {[%emt 0:00:00]} 66. Nc8+ {[%emt 0:01:06]} Kc7 {[%emt 0:00:00]} 67. Ne7 {[%emt 0:00:39]} Kd6 {[%emt 0:00:00]} 68. Nc8+ {[%emt 0:01:38]} Kc7 {[%emt 0:00:00]} 69. Na7 {[%emt 0:00:30]} Ng6 {[%emt 0:00:03]} 1/2-1/2

[Event "44th Chess Olympiad Women 2022"]
[Site "Chennai"]
[Date "2022.08.02"]
[Round "5.45"]
[White "Roy, Ali"]
[Black "Kaslan, Alexandra"]
[Result "1-0"]
[ECO "A07"]
[WhiteElo "1893"]
[BlackElo "1435"]
[Annotator "NA RC COMBH"]
[PlyCount "61"]
[EventDate "2022.07.29"]
[EventType "team-tourn"]
[EventCountry "IND"]
[SourceTitle "playchess.com"]
[Source "ChessBase"]
[SourceQuality "1"]
[WhiteTeam "Scotland"]
[BlackTeam "Surinam"]
[WhiteTeamCountry "SCO"]
[BlackTeamCountry "SUR"]
[TimeControl "40/5400+30:1800+30"]

1. Nf3 {[%emt 0:00:03]} e6 {[%emt 0:00:23]} 2. g3 {[%emt 0:00:08]} Nf6 {[%emt 0:00:34]} 3. Bg2 {[%emt 0:00:10]} d5 {[%emt 0:00:37]} 4. O-O {[%emt 0:00:33]} Nbd7 {[%emt 0:00:56]} 5. d3 {[%emt 0:00:20]} Be7 {[%emt 0:00:52]} 6. Nbd2 {[%emt 0:00:36]} O-O {[%emt 0:01:36]} 7. e4 {[%emt 0:00:59]} dxe4 {[%emt 0:01:07]} 8. dxe4 {[%emt 0:00:11]} e5 {[%emt 0:04:30]} 9. Qe2 {[%emt 0:01:55]} c6 {[%emt 0:01:29]} 10. b3 {[%emt 0:02:19]} Qc7 {[%emt 0:06:07]} 11. a4 {[%emt 0:06:06]} b6 {[%emt 0:07:07]} 12. Bb2 {[%emt 0:01:35]} Re8 {[%emt 0:01:41]} 13. Rfd1 {[%emt 0:04:47]} Bc5 {[%emt 0:04:00]} 14. Nh4 {[%emt 0:08:03]} Nf8 {[%emt 0:03:45]} 15. Nf5 {[%emt 0:02:38]} Ng6 {[%emt 0:07:28]} 16. h4 {[%emt 0:05:10]} Ne7 {[%emt 0:10:31]} 17. g4 {[%emt 0:05:54]} Ng6 {[%emt 0:01:55]} 18. g5 {[%emt 0:03:55]} Nf4 {[%emt 0:02:23]} 19. Qf3 {[%emt 0:02:20]} Nd7 {[%emt 0:05:44]} 20. Nc4 {[%emt 0:04:49]} Nxg2 {[%emt 0:07:22]} 21. Kxg2 {[%emt 0:00:21]} b5 {[%emt 0:05:35]} 22. Ncd6 {[%emt 0:07:47]} Bxd6 {[%emt 0:03:10]} 23. Nxd6 {[%emt 0:00:13]} Rf8 {[%emt 0:01:00]} 24. axb5 {[%emt 0:07:00]} cxb5 {[%emt 0:04:58]} 25. Nxb5 {[%emt 0:01:01]} Qxc2 {[%emt 0:06:12]} 26. Ba3 {[%emt 0:00:29]} Qc6 {[%emt 0:01:47]} 27. Bxf8 {[%emt 0:02:40]} Qxb5 {[%emt 0:00:28]} 28. Rd5 {[%emt 0:02:55]} Qc6 {[%emt 0:01:06]} 29. Ba3 {[%emt 0:02:43]} Bb7 {[%emt 0:03:21]} 30. Rad1 {[%emt 0:01:55]} Nf8 {[%emt 0:05:31]} 31. Rd8 {[%emt 0:14:12]} 1-0